Cogmind - Beta 12 @@@ ROGUE MODE // 2023.03.18 @ 19:52:22 Player: ArabianSandBoa Result: Destroyed by D-53 Grenadier with Mini Grenade Launcher Performance ------------- Evolutions (0) 0 Regions Visited (2) 400 Robots Destroyed (31) 155 Value Destroyed (421) 421 Prototype IDs (0) 0 Alien Tech Used (0) 0 Bonus (0) 0 TOTAL SCORE: 976 Bonus ------- None Cogmind --------- Core Integrity 0/250 Matter 50/300 Energy 97/100 System Corruption 8% Temperature Cool (0) Movement Core (50) Location -10/Mines Parts ------- > --- POWER (1) -------- (None) > --- PROPULSION (2) --- (None) > --- UTILITY (2) ------ Heat Sink > --- WEAPON (2) ------- Assault Rifle > --- INVENTORY (5) ---- Improved Treads Improved Treads Seismic Detector EM Pulse Gun Datajack Peak State ------------ > --- POWER ------------ Ion Engine > --- PROPULSION ------- Improved Treads Improved Treads > --- UTILITY ---------- Small Storage Unit Seismic Detector > --- WEAPON ----------- EM Pulse Gun Particle Gun > --- INVENTORY -------- Improved Treads Improved Treads Medium Laser Assault Rifle Assault Rifle Grenade Launcher Datajack Mining Laser [Rating: 11] Favorites ----------- Power Ion Engine Engine Ion Engine Propulsion Improved Treads Treads Improved Treads Leg Aluminum Leg Wheel Wheel Utility Small Storage Unit Device Heat Sink Storage Small Storage Unit Weapon EM Pulse Gun Energy Gun EM Pulse Gun Ballistic Gun Assault Rifle Launcher Grenade Launcher Build | -11 -10 -10 ------- Run | Jun Mat Min Slots Evolved . | . . . Power . | . . . Propulsion . | . . . Utility . | . . . Weapon . | . . . Parts Attached 25 | 2 18 5 Power 2 | . 2 . Engine 2 | . 2 . Core . | . . . Reactor . | . . . Propulsion 4 | . 4 . Treads 2 | . 2 . Leg . | . . . Wheel 2 | . 2 . Hover . | . . . Flight . | . . . Utility 2 | 1 1 . Device 2 | 1 1 . Storage . | . . . Processor . | . . . Hackware . | . . . Protection . | . . . Artifact . | . . . Weapon 17 | 1 11 5 Energy Gun 8 | 1 6 1 Energy Cannon . | . . . Ballistic Gun 5 | . 3 2 Ballistic Cannon . | . . . Launcher 4 | . 2 2 Special Weapon . | . . . Impact Weapon . | . . . Slashing Weapon . | . . . Piercing Weapon . | . . . Special Melee Weapon . | . . . Unidentified Prototypes . | . . . Corrupted Parts 1 | . 1 . System Corruption 7 | . 7 . Parts Lost 3 | . 1 2 Power 1 | . 1 . Propulsion . | . . . Utility . | . . . Weapon 2 | . . 2 Highest Loss Streak 2 | . 1 2 To Critical Strikes . | . . . Average Slot Usage (%) 98 | . 98 98 Engine 13 | . 13 13 Treads 26 | . 26 27 Device 14 | . 14 14 Storage 13 | . 14 13 Energy Gun 24 | . 23 25 Ballistic Gun 2 | . 3 . Naked Turns . | . . . Heaviest Build 17 | 15 16 17 Greatest Support 46 | 20 46 46 Greatest Overweight (x) 4 | 4 4 . Average Overweight (x) . | 2 . . Largest Inventory Capacity 8 | 8 8 8 Average Capacity 7 | 8 8 7 Most Carried 8 | 7 8 7 Average Carried 7 | 5 7 6 Final Capacity 8 | 8 8 5 Final Carried 7 | 6 7 5 Class Distribution -------------------- 100% | Mutant Dominant Class ---------------- Mutant | -10/Materials Mutant | -10/Mines Resources | -11 -10 -10 ----------- Run | Jun Mat Min Matter Collected 524 | 220 186 118 Remotely . | . . . Salvage Created 713 | 184 427 102 Parts 67 | 16 41 10 Haulers Intercepted 2 | . 2 . Recyclers Shooed . | . . . Parts Field Recycled . | . . . Retrieved Matter . | . . . Parts Self-Destructed . | . . . Prevented . | . . . Kills | -11 -10 -10 ------- Run | Jun Mat Min Combat Hostiles Destroyed 25 | . 13 12 Guns 4 | . 4 . AOE 21 | . 9 12 Classes Destroyed 10 | 2 7 1 Worker 2 | . 1 1 Builder 2 | . 1 1 Tunneler 5 | 4 . 1 Hauler 2 | . 2 . Recycler 1 | 1 . . Operator 1 | . 1 . Watcher 3 | . 3 . Swarmer 10 | . 8 2 Grunt 5 | . 5 . Assembled 10 | . . 10 Best Kill Streak 10 | 3 7 10 Combat Bots Only 10 | . 6 10 Max Kills in Single Turn 3 | 1 2 3 Gunslinging . | . . . Exploded 3 | . 2 3 Melee . | . . . Uniques/NPCs Destroyed . | . . . Combat | -11 -10 -10 -------- Run | Jun Mat Min Damage Taken 1019 | . 299 720 Core 272 | . 64 208 Absorbed by Shields . | . . . Regen/Repaired (Parts) 42 | . 42 . Core Remaining (%) 100 | 100 . . Volleys Fired 54 | 6 31 17 Largest 2 | 2 2 2 Hottest 115 | 90 115 105 Shots Fired 95 | 12 59 24 Gun 79 | 12 52 15 Cannon . | . . . Launcher 16 | . 7 9 Special . | . . . Kinetic 18 | . 12 6 Thermal 37 | 6 27 4 Explosive 16 | . 7 9 Electromagnetic 24 | 6 13 5 Robot Hit Streak 7 | 4 7 5 Robot Miss Streak 4 | 1 4 2 Penetration Max . | . . . Secondary Targets . | . . . Shots Hit Robots 50 | 9 32 9 Core Hits 61 | 6 28 27 Critical Kills 1 | . 1 . Critical Parts Destroyed . | . . . Critical Strikes 2 | 1 1 . Burn 1 | 1 . . Destroy 1 | . 1 . Melee Attacks . | . . . Impact . | . . . Slashing . | . . . Piercing . | . . . Sneak Attacks . | . . . Combat Hostiles . | . . . Follow-up Attacks . | . . . Damage Inflicted 1839 | 115 985 739 Guns 646 | 115 421 110 Cannons . | . . . Explosions 1193 | . 564 629 Melee . | . . . Ramming . | . . . Kinetic 165 | . 98 67 Thermal 350 | 75 245 30 Explosive 1088 | . 459 629 Electromagnetic 236 | 40 183 13 Impact . | . . . Slashing . | . . . Piercing . | . . . Highest Corruption 8 | . 8 8 Average Corruption 7 | . 7 8 Corruption Purged . | . . . Corruption Blocked . | . . . Effects 58 | . 39 19 Message Errors 12 | . 9 3 Matter Fused 16 | . 12 4 Heat Flow Errors 5 | . 2 3 Energy Discharges 6 | . 3 3 Data Loss (minor) 10 | . 7 3 Data Loss (major) 1 | . . 1 Misfires 6 | . 5 1 Weapon Failures 2 | . 1 1 Overload Shots . | . . . Overflow Damage 40 | . . 40 Projectiles . | . . . Explosions 40 | . . 40 Melee . | . . . Knockbacks . | . . . Impact . | . . . Kinetic . | . . . Secondary . | . . . Self-Inflicted Damage 233 | . 138 95 Shots 8 | . 5 3 Rammed . | . . . Targets Rammed . | . . . Kicked . | . . . Crushed . | . . . Highest Temperature 211 | 60 211 174 Average Temperature 41 | 27 42 49 Received Heat Transfer 56 | . 36 20 Effects 1 | . 1 . Interference 1 | . 1 . Siege Activations . | . . . Robots Corrupted . | . . . Combat Hostiles . | . . . Parts Fried 1 | . 1 . Impact Corruptions . | . . . Robots Melted . | . . . Combat Hostiles . | . . . Parts Melted 1 | 1 . . Heat Transferred 938 | 296 568 74 Parts Sabotaged . | . . . Parts Stolen . | . . . Parts Stripped . | . . . Power Chain Reactions 2 | . 2 . Missiles Intercepted . | . . . Alert | -11 -10 -10 ------- Run | Jun Mat Min Peak Influence 351 | 25 351 123 Initial 49 | . 16 49 Average 130 | 17 171 69 Maximum Alert Level 1 | . 1 . Low Security (%) 78 | 100 65 100 Level 1 21 | . 34 . Level 2 . | . . . Level 3 . | . . . Level 4 . | . . . Level 5 . | . . . High Security . | . . . Max Security . | . . . Squads Dispatched 3 | . 3 . Investigation 2 | . 2 . Extermination . | . . . Reinforcement 1 | . 1 . Assault . | . . . Garrison . | . . . Intercept . | . . . Searches Triggered . | . . . Construction Impeded . | . . . Haulers Reinforced . | . . . Active Scanning Responses . | . . . Cargo Convoy Interrupts . | . . . Stealth | -11 -10 -10 --------- Run | Jun Mat Min Distress Signals 1 | . 1 . Communications Jammed . | . . . Distress Signals . | . . . Times Spotted 40 | . 18 22 Peak Tracking Total 9 | . 3 9 Tactical Retreats . | . . . Traps | -11 -10 -10 ------- Run | Jun Mat Min Traps Triggered 1 | . 1 . Indirectly . | . . . Trap Hack Attempts . | . . . Triggered . | . . . Disarmed . | . . . Reprogrammed . | . . . Reused . | . . . Traps Extracted . | . . . Installed . | . . . Triggered . | . . . Machines | -11 -10 -10 ---------- Run | Jun Mat Min Machines Disabled 3 | . 3 . Max in Single Turn 2 | . 2 . Machines Repaired . | . . . Machines Sabotaged . | . . . Overloaded Fab Kills . | . . . Hacking | -11 -10 -10 --------- Run | Jun Mat Min Machines Accessed 8 | . 8 . Terminals 5 | . 5 . Fabricators . | . . . Repair Stations 1 | . 1 . Recycling Units 2 | . 2 . Scanalyzers . | . . . Garrison Access . | . . . Total Hacks 28 | . 28 . Successful 15 | . 15 . Failed 12 | . 12 . Catastrophic 3 | . 3 . Database Lockouts 1 | . 1 . Manual 19 | . 19 . Terminals 19 | . 19 . Fabricators . | . . . Repair Stations 3 | . 3 . Recycling Units 6 | . 6 . Scanalyzers . | . . . Garrison Access . | . . . Terminal Hacks 4 | . 4 . Record 1 | . 1 . Robot Analysis 1 | . 1 . Branch Access Points 1 | . 1 . Hauler Manifests 1 | . 1 . Fabricator Hacks . | . . . Repair Station Hacks 2 | . 2 . Scan Component 1 | . 1 . Repair 1 | . 1 . Recycling Unit Hacks 2 | . 2 . Report Inventory 2 | . 2 . Scanalyzer . | . . . Garrison Access Hacks . | . . . Unauthorized Hacks 7 | . 7 . Terminals 3 | . 3 . Botnet 3 | . 3 . Fabricators . | . . . Repair Stations . | . . . Recycling Units 4 | . 4 . Reject 1 | . 1 . Mask 1 | . 1 . Tunnel 2 | . 2 . Scanalyzers . | . . . Garrison Access . | . . . Data Cores Recovered . | . . . Used . | . . . Hacking Detections 6 | . 6 . Full Trace Events 2 | . 2 . Feedback Events . | . . . Feedback Blocked . | . . . Robot Schematics Acquired . | . . . Robots Built . | . . . Authchips . | . . . Time . | . . . Total Robot Build Rating . | . . . Part Schematics Acquired . | . . . Parts Built . | . . . Authchips . | . . . Time . | . . . Total Part Build Rating . | . . . Parts Repaired 1 | . 1 . Time 26 | . 26 . Parts Recycled . | . . . Recycled Matter . | . . . Retrieved Matter . | . . . Retrieved Components . | . . . Parts Scanalyzed . | . . . Part Schematics Acquired . | . . . Parts Damaged . | . . . Bothacking | -11 -10 -10 ------------ Run | Jun Mat Min Used RIF Installer . | . . . Robots Hacked . | . . . Non-combat . | . . . Combat . | . . . Robot Hacks Applied . | . . . Relay Couplers Released . | . . . Fabnet Peak Effective % . | . . . Robots Rewired . | . . . Allies Hacked . | . . . Hacks Repelled . | . . . Allies | -11 -10 -10 -------- Run | Jun Mat Min Total Allies . | . . . Largest Group . | . . . Highest-Rated Group . | . . . Highest-Rated Ally . | . . . Total Orders . | . . . Ally Attacks . | . . . Total Damage . | . . . Kills . | . . . Allies Corrupted . | . . . Allies Melted . | . . . Intel | -11 -10 -10 ------- Run | Jun Mat Min Robot Analysis Total 1 | . 1 . Derelict Logs Recovered 1 | . . 1 Drone Launches . | . . . Drone Recoveries . | . . . Exploration | -11 -10 -10 ------------- Run | Jun Mat Min Turns Passed 2239 | 172 1421 646 Spaces Moved 1063 | 60 644 359 Core 65 | 35 25 5 Treads 955 | . 601 354 Legs 25 | 25 . . Wheels 18 | . 18 . Hover . | . . . Flight . | . . . Fastest Speed 50 | 120 80 50 Average Speed 161 | 195 160 158 Slowest Speed 250 | 250 250 160 Overloaded Moves . | . . . Propulsion Burnouts . | . . . Robots Hopped . | . . . Cave-ins Triggered . | . . . Exploration Rate (%) 55 | 5 92 69 Regions Visited 2 Branch Regions 1 Pre-discovered Areas 3 | . 2 1 Known Exits Taken 1 | . 1 . Unknown Exits Taken 1 | 1 . . Scrap Searched . | . . . Spaces Dug 8 | . . 8 Terrain Destroyed 116 | . 57 59 Melee . | . . . Projectile . | . . . AOE 116 | . 57 59 Terrain Rammed . | . . . Walls Destroyed . | . . . Machines Disabled . | . . . Actions | -11 -10 -10 --------- Run | Jun Mat Min Total 1491 | 105 973 413 Wait 323 | 30 266 27 Move 1061 | 59 643 359 Hop . | . . . Pick Up 10 | 3 7 . Fast Attach 4 | 1 3 . Attach 5 | . 3 2 Detach 2 | . 2 . Swap 16 | 1 12 3 Drop 16 | 5 6 5 Fire 54 | 6 31 17 Melee . | . . . Ram . | . . . Kick . | . . . Crush . | . . . Escape Stasis . | . . . Rewire . | . . . Trap . | . . . Miscellaneous . | . . . Route ------- -11/Junkyard -10/Materials (discovered 5 exits: [*Mat x3] / *Min x2) -10/Mines (discovered 1 exit: [*Mat]) History --------- Turn | Location | Event 1 | -11/Junkyard | Discovered new exit (range 3) 173 | -11/Junkyard | Entered Materials 301 | -10/Materials | Build established: Mutant 331 | -10/Materials | Repaired EM Pulse Gun 420 | -10/Materials | Discovered new exit (range 15) 656 | -10/Materials | Discovered new exit (range 6) 665 | -10/Materials | Identified exit to Mines 1247 | -10/Materials | Central database locked down 1458 | -10/Materials | Discovered new exit (range 12) 1594 | -10/Materials | Entered Mines 1597 | -10/Mines | Met a Derelict bent on vengeance 1763 | -10/Mines | Learned location of Zion (-7) 1803 | -10/Mines | Discovered new exit (range 5) 2195 | -10/Mines | Assembled infested the area 2228 | -10/Mines | Core integrity fell below 50% 2235 | -10/Mines | Core integrity fell below 20% 2240 | -10/Mines | Destroyed by D-53 Grenadier with Mini Grenade Launcher Last Messages --------------- 02225_ D-53 Grenadier unfolds itself. 02228_ K-01 Serf collects debris. 02228_ Dropped Sml. Storage Unit. 02229_ U-05 Engineer lays Concrete. 02229_ as-89165 destroyed. 02229_ as-56081 destroyed. 02229_ as-83654 destroyed. 02229_ as-33082 destroyed. 02230_ U-05 Engineer builds a Wall. 02230_ as-54941 destroyed. 02230_ as-68986 destroyed. 02230_ as-33503 destroyed. 02232_ K-01 Serf collects debris. 02233_ The unstable cave ceiling collapses. 02234_ U-05 Engineer destroyed. 02235_ K-01 Serf collects debris. 02236_ The unstable cave ceiling collapses. 02236_ Dropped Imp. Treads. 02237_ Dropped Ion Engine. 02237_ Dropped Assault Rifle. Map ----- +----------------------------------------------------+ | | | | | | | | | | | | | | | | | | | | | ?????????????????????????????????????????????????? | | ?????????????????????????????????????????????????? | | ?????????????????????????????????????????????????? | | ??????????????????????????????????###????????????? | | ?????????????????????????????????# ##???????????? | | ????????????????????????#####??## ##??????????? | | ???????????????????????## #??# ??????????? | | ???????????????????????# ??# #???????????? | | ???????????????????????# #??# #????????????? | | ???????????????????????# #??# #?????????????? | | ??????????????????????## #### #??????????????? | | ?????????????????????## #??????????????? | | ?????????????????????# ##?????????????? | | ?????????????????????## #?????????????? | | ???????????????????### #?????????????? | | ???????????????????#=% @ = #?????????????? | | ???????????????????#%# ##?????????????? | | ?????????????????? ## #?????????????? | | ?????????????????###??# d###????????????? | | ??????????????????????### d ##???????????? | | ????????????????????????####### ##??????????? | | ?????????????????????????####?# #??????????? | | ???????????????????????### #### ##### #???? | | ??????????????????????## #?## % #???? | | ??????????????????????# #??## #???? | | ??????????????????????# #???# ##########???? | | ???????????????????????# ##??# ## ##???????? | | ???????????????????????## #### # #???????? | | ????????????????????????## #????????? | | ?????????????????????????# #????????? | | ?????????????????????????# #????????? | | ?????????????????????????## #???????? | | ??????????????????????????# """ #??????? | | ?????????????????????????## """ #??????? | | ????????????????????????## """ ## #?????? | | ??????????????????###???# ##?# ????? | | ?????????######???# ##??# ##??? ??? | | ????????## ##### #### ## ##????# ?? | | ??####### ## ######??????#### ###??? | | ?## ## ##??????????????###????? | +----------------------------------------------------+ Best States ------------- Heat Dissipation 35 Energy Generation 10 Energy Capacity 250 Matter Stores 300 Matter Capacity 300 Sight Range 16 Terrain Scan Density 10 Evasion (%) 55 Recoil Reduction 2 Item Schematics ----------------- None Robot Schematics ------------------ None Fabricated ------------ Nothing Alien Tech Used ----------------- None Achievements -------------- None Challenges ------------ None Game ------ Seed BeamBarrageTorch Manual? 0 Play Time 00:15:13 Cumulative 488.9 hours Start 2023.03.18 @ 19:39:59 End 2023.03.18 @ 19:52:22 Sessions 1 Manual Loads 0 Difficulty Rogue Special Mode None Game No. 529 Rogue 529 Adventurer 0 Explorer 0 Win Type - Total 1 Types 1/0/0/0/0/0/0/0/0 Lore% 61 Gallery% 82 Achievement% 65 Wizard Run 0 Options --------- ASCII 0 Keyboard 0 Movement Mouse Keybinds 0 Fullscreen 2 Font 24/Smallcaps Map View 76x50 Tactical HUD 1 Map Filters NONE Filters NONE Steam 1 RUN: eee66f8a-2edd-411e-9c3f-4ef4c7fa1fb6